[Event "58th Akiba Rubinstein B 2022"]
[Site "Polanica-Zdroj"]
[Date "2022.08.18"]
[Round "6.2"]
[White "Chmiel, Marcin"]
[Black "Mielczarek, Daniel"]
[Result "1-0"]
[ECO "E16"]
[WhiteElo "2192"]
[BlackElo "1912"]
[Annotator "NA RC"]
[PlyCount "98"]
[EventDate "2022.08.13"]
[EventCountry "POL"]
[SourceTitle "playchess.com"]
[Source "ChessBase"]
[SourceQuality "1"]
[TimeControl "40/5400+30:1800+30"]

1. d4 {[%emt 0:00:27]} Nf6 {[%emt 0:00:43]} 2. c4 {[%emt 0:00:07]} e6 {[%emt 0:00:49]} 3. Nf3 {[%emt 0:00:08]} b6 {[%emt 0:01:35]} 4. g3 {[%emt 0:00:16]} Bb7 {[%emt 0:00:57]} 5. Bg2 {[%emt 0:00:17]} Bb4+ {[%emt 0:01:28]} 6. Bd2 {[%emt 0:00:10]} Be7 {[%emt 0:01:13]} 7. O-O {[%emt 0:00:39]} O-O {[%emt 0:00:52]} 8. Nc3 {[%emt 0:00:20]} d5 {[%emt 0:01:33]} 9. cxd5 {[%emt 0:00:18]} Nxd5 {[%emt 0:00:43]} 10. Nxd5 {[%emt 0:00:14]} Bxd5 {[%emt 0:00:24]} 11. Qc2 {[%emt 0:00:20]} Nd7 {[%emt 0:04:37]} 12. e4 {[%emt 0:03:34]} Bb7 {[%emt 0:00:09]} 13. Bf4 {[%emt 0:08:53]} Bd6 {[%emt 0:07:01]} 14. e5 {[%emt 0:03:18]} Be7 {[%emt 0:01:32]} 15. Ng5 {[%emt 0:01:18]} Bxg5 {[%emt 0:00:30]} 16. Bxb7 {[%emt 0:00:30]} Rb8 {[%emt 0:04:02]} 17. Bxg5 {[%emt 0:00:32]} Qxg5 {[%emt 0:00:01]} 18. Qxc7 {[%emt 0:01:52]} Qd8 {[%emt 0:00:26]} 19. Rac1 {[%emt 0:11:12]} Nc5 {[%emt 0:00:37]} 20. Qxd8 {[%emt 0:00:27]} Rfxd8 {[%emt 0:00:06]} 21. dxc5 {[%emt 0:00:18]} Rxb7 {[%emt 0:00:06]} 22. Rfd1 {[%emt 0:08:01]} Rxd1+ {[%emt 0:01:51]} 23. Rxd1 {[%emt 0:00:02]} f6 {[%emt 0:00:29]} 24. c6 {[%emt 0:06:19]} Rc7 {[%emt 0:00:05]} 25. Rd7 {[%emt 0:00:34]} Rxc6 {[%emt 0:00:14]} 26. exf6 {[%emt 0:00:11]} gxf6 {[%emt 0:00:17]} 27. Rxa7 {[%emt 0:00:06]} Rc2 {[%emt 0:00:19]} 28. b4 {[%emt 0:02:53]} b5 {[%emt 0:01:06]} 29. a3 {[%emt 0:05:38]} Ra2 {[%emt 0:00:20]} 30. g4 {[%emt 0:02:50]} e5 {[%emt 0:00:17]} 31. Kg2 {[%emt 0:00:48]} h6 {[%emt 0:00:29]} 32. h4 {[%emt 0:01:26]} Kf8 {[%emt 0:01:07]} 33. h5 {[%emt 0:03:35]} Kg8 {[%emt 0:00:54]} 34. Kf3 {[%emt 0:04:26]} Kf8 {[%emt 0:00:12]} 35. Ke3 {[%emt 0:02:22]} Rc2 {[%emt 0:00:19]} 36. Rb7 {[%emt 0:06:40]} Rc3+ {[%emt 0:00:14]} 37. Ke4 {[%emt 0:00:17]} Rc4+ {[%emt 0:01:09]} 38. Kf3 {[%emt 0:03:52]} Rc3+ {[%emt 0:00:10]} 39. Kg2 {[%emt 0:00:11]} Rxa3 {[%emt 0:00:19]} 40. Rxb5 {[%emt 0:00:00]} Kf7 {[%emt 0:00:00]} 41. Rb8 {[%emt 0:03:53]} Rb3 {[%emt 0:03:24]} 42. b5 {[%emt 0:00:31]} f5 {[%emt 0:00:34]} 43. gxf5 {[%emt 0:00:48]} Kf6 {[%emt 0:00:14]} 44. b6 {[%emt 0:07:33]} Kxf5 {[%emt 0:03:31]} 45. b7 {[%emt 0:00:11]} Ke4 {[%emt 0:00:06]} 46. Kf1 {[%emt 0:00:41]} Rb2 {[%emt 0:02:40]} 47. Ke1 {[%emt 0:00:15]} Rb1+ {[%emt 0:00:06]} 48. Kd2 {[%emt 0:00:21]} Rb6 {[%emt 0:00:06]} 49. f3+ {[%emt 0:00:26]} Kd5 1-0

[Event "58th Akiba Rubinstein B 2022"]
[Site "Polanica-Zdroj"]
[Date "2022.08.18"]
[Round "6.3"]
[White "Jaworski, Tymon"]
[Black "Twardowski, Hubert"]
[Result "1-0"]
[ECO "C88"]
[WhiteElo "1701"]
[BlackElo "1849"]
[Annotator "NA RC"]
[PlyCount "71"]
[EventDate "2022.08.13"]
[EventCountry "POL"]
[SourceTitle "playchess.com"]
[Source "ChessBase"]
[SourceQuality "1"]
[TimeControl "40/5400+30:1800+30"]

1. e4 {[%emt 0:00:02]} e5 {[%emt 0:02:04]} 2. Nf3 {[%emt 0:00:12]} Nc6 {[%emt 0:00:10]} 3. Bb5 {[%emt 0:00:18]} a6 {[%emt 0:00:06]} 4. Ba4 {[%emt 0:00:08]} Nf6 {[%emt 0:00:20]} 5. O-O {[%emt 0:00:15]} b5 {[%emt 0:04:34]} 6. Bb3 {[%emt 0:00:24]} Be7 {[%emt 0:00:08]} 7. Re1 {[%emt 0:08:43]} d6 {[%emt 0:01:26]} 8. c3 {[%emt 0:00:55]} Na5 {[%emt 0:01:17]} 9. Bc2 {[%emt 0:00:29]} c5 {[%emt 0:00:20]} 10. d4 {[%emt 0:00:43]} Qc7 {[%emt 0:00:42]} 11. Nbd2 {[%emt 0:07:52]} O-O {[%emt 0:02:25]} 12. Nf1 {[%emt 0:02:21]} Rd8 {[%emt 0:05:49]} 13. d5 {[%emt 0:02:20]} Bf8 {[%emt 0:01:16]} 14. Bg5 {[%emt 0:00:55]} Qe7 {[%emt 0:00:13]} 15. Ng3 {[%emt 0:08:53]} g6 {[%emt 0:03:03]} 16. b4 {[%emt 0:05:18]} Nb7 {[%emt 0:12:18]} 17. a4 {[%emt 0:06:48]} Bd7 {[%emt 0:08:31]} 18. Qe2 {[%emt 0:03:18]} Rdc8 {[%emt 0:15:12]} 19. axb5 {[%emt 0:12:35]} axb5 {[%emt 0:15:32]} 20. Bd3 {[%emt 0:06:56]} c4 {[%emt 0:00:37]} 21. Bc2 {[%emt 0:06:58]} Bg7 {[%emt 0:00:14]} 22. Qe3 {[%emt 0:00:32]} Qd8 {[%emt 0:09:21]} 23. Ra7 {[%emt 0:04:00]} Qc7 {[%emt 0:03:43]} 24. Rea1 {[%emt 0:00:25]} Rxa7 {[%emt 0:00:52]} 25. Qxa7 {[%emt 0:00:28]} Qb8 {[%emt 0:00:27]} 26. Qb6 {[%emt 0:03:59]} Qc7 {[%emt 0:00:26]} 27. Ra6 {[%emt 0:01:29]} h6 {[%emt 0:05:02]} 28. Be3 {[%emt 0:01:38]} Qb8 {[%emt 0:01:33]} 29. Ra7 {[%emt 0:03:02]} Nd8 {[%emt 0:00:37]} 30. Nd2 {[%emt 0:04:25]} Be8 {[%emt 0:05:22]} 31. Qa6 {[%emt 0:04:15]} Bf8 {[%emt 0:01:29]} 32. Ne2 {[%emt 0:01:00]} g5 {[%emt 0:00:38]} 33. h4 {[%emt 0:01:40]} g4 {[%emt 0:00:23]} 34. Ng3 {[%emt 0:00:29]} h5 {[%emt 0:00:23]} 35. Bg5 {[%emt 0:00:31]} Bg7 {[%emt 0:00:42]} 36. Nf5 {[%emt 0:00:12]} 1-0

[Event "58th Akiba Rubinstein B 2022"]
[Site "Polanica-Zdroj"]
[Date "2022.08.18"]
[Round "6.4"]
[White "Kossowski, Pawel"]
[Black "Trusz, Julia"]
[Result "1/2-1/2"]
[ECO "B04"]
[WhiteElo "1737"]
[BlackElo "1706"]
[Annotator "NA RC"]
[PlyCount "108"]
[EventDate "2022.08.13"]
[EventCountry "POL"]
[SourceTitle "playchess.com"]
[Source "ChessBase"]
[SourceQuality "1"]
[TimeControl "40/5400+30:1800+30"]

1. e4 {[%emt 0:00:02]} Nf6 {[%emt 0:00:16]} 2. e5 {[%emt 0:00:18]} Nd5 {[%emt 0:00:12]} 3. d4 {[%emt 0:00:13]} d6 {[%emt 0:00:19]} 4. Nf3 {[%emt 0:00:09]} dxe5 {[%emt 0:00:42]} 5. Nxe5 {[%emt 0:00:18]} c6 {[%emt 0:01:18]} 6. Be2 {[%emt 0:02:49]} Bf5 {[%emt 0:03:55]} 7. O-O {[%emt 0:03:17]} Nd7 {[%emt 0:03:13]} 8. Nf3 {[%emt 0:00:42]} N7f6 {[%emt 0:02:50]} 9. c4 {[%emt 0:01:08]} Nb6 {[%emt 0:00:57]} 10. Nc3 {[%emt 0:00:56]} Ne4 {[%emt 0:04:13]} 11. Nh4 {[%emt 0:16:12]} Nxc3 {[%emt 0:09:31]} 12. bxc3 {[%emt 0:00:29]} Be6 {[%emt 0:00:44]} 13. c5 {[%emt 0:01:27]} Nd5 {[%emt 0:02:35]} 14. Qc2 {[%emt 0:07:54]} g6 {[%emt 0:12:58]} 15. f4 {[%emt 0:06:27]} Qd7 {[%emt 0:06:20]} 16. c4 {[%emt 0:07:28]} Nf6 {[%emt 0:02:36]} 17. Bb2 {[%emt 0:01:11]} Rg8 {[%emt 0:20:04]} 18. Rae1 {[%emt 0:09:30]} Bh6 {[%emt 0:07:18]} 19. f5 {[%emt 0:22:32]} gxf5 {[%emt 0:02:02]} 20. Nxf5 {[%emt 0:03:55]} Bxf5 {[%emt 0:01:37]} 21. Qxf5 {[%emt 0:01:12]} Qxf5 {[%emt 0:02:17]} 22. Rxf5 {[%emt 0:00:21]} Bd2 {[%emt 0:03:42]} 23. Rd1 {[%emt 0:02:21]} Be3+ {[%emt 0:00:19]} 24. Kf1 {[%emt 0:00:26]} O-O-O {[%emt 0:01:23]} 25. Re5 {[%emt 0:01:13]} Bf4 {[%emt 0:01:40]} 26. Rxe7 {[%emt 0:00:16]} Bxh2 {[%emt 0:00:14]} 27. Rxf7 {[%emt 0:00:32]} Ne4 {[%emt 0:05:09]} 28. Bf3 {[%emt 0:00:38]} Ng5 {[%emt 0:02:30]} 29. Rf5 {[%emt 0:01:27]} Rdf8 {[%emt 0:00:45]} 30. Rxf8+ {[%emt 0:00:27]} Rxf8 {[%emt 0:00:06]} 31. Ke2 {[%emt 0:01:27]} Nxf3 {[%emt 0:00:38]} 32. gxf3 {[%emt 0:00:16]} Rg8 {[%emt 0:00:32]} 33. Kf2 {[%emt 0:02:40]} Bg3+ {[%emt 0:00:18]} 34. Ke3 {[%emt 0:00:11]} h5 {[%emt 0:01:04]} 35. f4 {[%emt 0:02:18]} h4 {[%emt 0:00:26]} 36. Kf3 {[%emt 0:01:01]} h3 {[%emt 0:01:18]} 37. Rh1 {[%emt 0:00:04]} h2 {[%emt 0:00:09]} 38. Bc1 {[%emt 0:00:27]} Kd7 {[%emt 0:00:38]} 39. d5 {[%emt 0:01:12]} b6 {[%emt 0:00:47]} 40. Be3 {[%emt 0:00:00]} cxd5 {[%emt 0:00:00]} 41. cxb6 {[%emt 0:03:15]} axb6 {[%emt 0:02:22]} 42. cxd5 {[%emt 0:00:32]} Kd6 {[%emt 0:00:20]} 43. Bxb6 {[%emt 0:01:54]} Kxd5 {[%emt 0:00:47]} 44. a4 {[%emt 0:00:48]} Ke6 {[%emt 0:05:00]} 45. Bf2 {[%emt 0:17:37]} Bxf2 {[%emt 0:02:48]} 46. Kxf2 {[%emt 0:00:07]} Kf5 {[%emt 0:03:17]} 47. Rxh2 {[%emt 0:00:40]} Kxf4 {[%emt 0:00:10]} 48. Rh4+ {[%emt 0:01:53]} Ke5 {[%emt 0:00:08]} 49. Ke3 {[%emt 0:00:32]} Kd5 {[%emt 0:02:34]} 50. Rh5+ {[%emt 0:00:50]} Kc6 {[%emt 0:00:13]} 51. Kd3 {[%emt 0:00:50]} Kb7 {[%emt 0:01:42]} 52. Kc4 {[%emt 0:00:10]} Ka6 {[%emt 0:01:21]} 53. a5 {[%emt 0:01:15]} Rg4+ {[%emt 0:00:07]} 54. Kb3 {[%emt 0:00:33]} Rg3+ {[%emt 0:00:29]} 1/2-1/2

[Event "58th Akiba Rubinstein B 2022"]
[Site "Polanica-Zdroj"]
[Date "2022.08.18"]
[Round "6.5"]
[White "Smukowski, Bartosz"]
[Black "Halhoul, Adam"]
[Result "1/2-1/2"]
[ECO "D31"]
[WhiteElo "1696"]
[BlackElo "1672"]
[Annotator "NA RC"]
[PlyCount "61"]
[EventDate "2022.08.13"]
[EventCountry "POL"]
[SourceTitle "playchess.com"]
[Source "ChessBase"]
[SourceQuality "1"]
[TimeControl "40/5400+30:1800+30"]

1. d4 {[%emt 0:00:38]} d5 {[%emt 0:00:30]} 2. c4 {[%emt 0:00:46]} e6 {[%emt 0:00:06]} 3. Nc3 {[%emt 0:00:05]} c6 {[%emt 0:00:04]} 4. e3 {[%emt 0:00:09]} Bd6 {[%emt 0:00:07]} 5. Nf3 {[%emt 0:00:32]} f5 {[%emt 0:00:10]} 6. Bd3 {[%emt 0:01:57]} Nf6 {[%emt 0:00:15]} 7. O-O {[%emt 0:06:36]} O-O {[%emt 0:00:19]} 8. cxd5 {[%emt 0:05:21]} exd5 {[%emt 0:00:24]} 9. Ne5 {[%emt 0:02:42]} Bxe5 {[%emt 0:08:53]} 10. dxe5 {[%emt 0:00:29]} Ng4 {[%emt 0:02:45]} 11. f4 {[%emt 0:00:24]} Be6 {[%emt 0:06:03]} 12. h3 {[%emt 0:05:41]} Nh6 {[%emt 0:05:27]} 13. Qe2 {[%emt 0:13:04]} a5 {[%emt 0:06:59]} 14. Rd1 {[%emt 0:01:20]} Nd7 {[%emt 0:02:09]} 15. b3 {[%emt 0:04:41]} b5 {[%emt 0:06:31]} 16. Bb2 {[%emt 0:03:11]} g5 {[%emt 0:13:36]} 17. Qh5 {[%emt 0:01:00]} Nf7 {[%emt 0:00:57]} 18. g4 {[%emt 0:03:38]} Nh8 {[%emt 0:20:03]} 19. Qh6 {[%emt 0:07:34]} Nc5 {[%emt 0:07:40]} 20. gxf5 {[%emt 0:15:25]} Nf7 {[%emt 0:00:46]} 21. Qh5 {[%emt 0:00:38]} Nxd3 {[%emt 0:07:46]} 22. fxe6 {[%emt 0:00:47]} Nfxe5 {[%emt 0:02:24]} 23. fxe5 {[%emt 0:00:51]} Nxb2 {[%emt 0:00:05]} 24. Rd2 {[%emt 0:01:08]} Qb6 {[%emt 0:00:27]} 25. Qxg5+ {[%emt 0:01:22]} Kh8 {[%emt 0:00:01]} 26. Rg2 {[%emt 0:00:10]} Qa7 {[%emt 0:01:06]} 27. e7 {[%emt 0:00:15]} Rf7 {[%emt 0:00:08]} 28. e6 {[%emt 0:00:06]} Rxe7 {[%emt 0:00:28]} 29. Qe5+ {[%emt 0:00:33]} Rg7 {[%emt 0:00:06]} 30. e7 {[%emt 0:00:06]} Qxe7 {[%emt 0:01:30]} 31. Qxe7 {[%emt 0:00:57]} 1/2-1/2

[Event "58th Akiba Rubinstein B 2022"]
[Site "Polanica-Zdroj"]
[Date "2022.08.18"]
[Round "6.6"]
[White "Owoc, Jakub"]
[Black "Jankowski, Aleksander"]
[Result "1-0"]
[ECO "B22"]
[WhiteElo "1756"]
[BlackElo "1715"]
[Annotator "NA RC"]
[PlyCount "81"]
[EventDate "2022.08.13"]
[EventCountry "POL"]
[SourceTitle "playchess.com"]
[Source "ChessBase"]
[SourceQuality "1"]
[TimeControl "40/5400+30:1800+30"]

1. e4 {[%emt 0:00:06]} c5 {[%emt 0:00:05]} 2. c3 {[%emt 0:00:09]} d5 {[%emt 0:00:06]} 3. exd5 {[%emt 0:00:07]} Qxd5 {[%emt 0:00:02]} 4. d4 {[%emt 0:01:12]} Nc6 {[%emt 0:00:02]} 5. Nf3 {[%emt 0:00:11]} Bf5 {[%emt 0:00:05]} 6. Be3 {[%emt 0:00:27]} Bxb1 {[%emt 0:00:58]} 7. Rxb1 {[%emt 0:00:30]} cxd4 {[%emt 0:00:06]} 8. Nxd4 {[%emt 0:00:28]} Nxd4 {[%emt 0:04:49]} 9. Qxd4 {[%emt 0:03:50]} Qxd4 {[%emt 0:02:00]} 10. Bxd4 {[%emt 0:00:07]} a6 {[%emt 0:00:32]} 11. Be2 {[%emt 0:00:07]} Nf6 {[%emt 0:00:08]} 12. Bf3 {[%emt 0:00:05]} O-O-O {[%emt 0:00:35]} 13. O-O {[%emt 0:00:54]} e6 {[%emt 0:01:53]} 14. b4 {[%emt 0:00:04]} Nd5 {[%emt 0:07:12]} 15. a3 {[%emt 0:00:46]} Be7 {[%emt 0:01:53]} 16. Bxg7 {[%emt 0:00:36]} Rhg8 {[%emt 0:00:07]} 17. Be5 {[%emt 0:01:44]} Rg5 {[%emt 0:04:22]} 18. Bg3 {[%emt 0:00:14]} f5 {[%emt 0:01:58]} 19. c4 {[%emt 0:00:13]} Nf6 {[%emt 0:01:15]} 20. Rfe1 {[%emt 0:00:25]} Ne4 {[%emt 0:02:47]} 21. Bxe4 {[%emt 0:00:18]} fxe4 {[%emt 0:00:06]} 22. Rxe4 {[%emt 0:00:05]} Rg6 {[%emt 0:00:25]} 23. Kf1 {[%emt 0:01:45]} Rd3 {[%emt 0:00:36]} 24. Re3 {[%emt 0:00:04]} Rd4 {[%emt 0:00:21]} 25. c5 {[%emt 0:01:23]} Bg5 {[%emt 0:01:37]} 26. Rc3 {[%emt 0:00:29]} h5 {[%emt 0:02:48]} 27. Be5 {[%emt 0:02:16]} Rd5 {[%emt 0:00:12]} 28. f4 {[%emt 0:00:22]} Be7 {[%emt 0:01:22]} 29. Rc2 {[%emt 0:07:02]} Rd3 {[%emt 0:02:13]} 30. a4 {[%emt 0:01:15]} Ra3 {[%emt 0:01:04]} 31. c6 {[%emt 0:00:12]} b5 {[%emt 0:00:37]} 32. axb5 {[%emt 0:01:29]} axb5 {[%emt 0:00:07]} 33. c7 {[%emt 0:02:40]} Ra4 {[%emt 0:02:06]} 34. Rd2 {[%emt 0:00:54]} Rg8 {[%emt 0:00:17]} 35. Rbd1 {[%emt 0:00:35]} Ra8 {[%emt 0:02:25]} 36. Rd7 {[%emt 0:00:07]} Re8 {[%emt 0:02:08]} 37. Rxe7 {[%emt 0:00:27]} Rxe7 {[%emt 0:00:06]} 38. Rd8+ {[%emt 0:00:03]} Kb7 {[%emt 0:00:07]} 39. Rxa8 {[%emt 0:00:04]} Kxa8 {[%emt 0:00:06]} 40. c8=Q+ {[%emt 0:00:00]} Ka7 {[%emt 0:00:00]} 41. Qc5+ {[%emt 0:00:17]} 1-0

[Event "58th Akiba Rubinstein B 2022"]
[Site "Polanica-Zdroj"]
[Date "2022.08.18"]
[Round "6.7"]
[White "Bartlomowicz, Jakub"]
[Black "Rogala, Milosz"]
[Result "1/2-1/2"]
[ECO "B01"]
[WhiteElo "1922"]
[BlackElo "1837"]
[Annotator "NA RC"]
[PlyCount "37"]
[EventDate "2022.08.13"]
[EventCountry "POL"]
[SourceTitle "playchess.com"]
[Source "ChessBase"]
[SourceQuality "1"]
[TimeControl "40/5400+30:1800+30"]

1. e4 {[%emt 0:00:02]} d5 {[%emt 0:00:11]} 2. exd5 {[%emt 0:00:11]} Qxd5 {[%emt 0:00:08]} 3. Nc3 {[%emt 0:00:05]} Qd8 {[%emt 0:00:12]} 4. d4 {[%emt 0:00:16]} Nf6 {[%emt 0:00:05]} 5. Bf4 {[%emt 0:00:57]} c6 {[%emt 0:00:45]} 6. h3 {[%emt 0:00:29]} g6 {[%emt 0:01:23]} 7. Nf3 {[%emt 0:00:16]} Bg7 {[%emt 0:00:50]} 8. Be2 {[%emt 0:06:06]} Nd5 {[%emt 0:05:36]} 9. Nxd5 {[%emt 0:01:37]} cxd5 {[%emt 0:00:10]} 10. O-O {[%emt 0:00:16]} O-O {[%emt 0:00:41]} 11. Re1 {[%emt 0:02:54]} Nc6 {[%emt 0:02:57]} 12. c3 {[%emt 0:01:55]} a6 {[%emt 0:02:38]} 13. Qd2 {[%emt 0:04:08]} Bd7 {[%emt 0:04:23]} 14. Ne5 {[%emt 0:03:40]} Nxe5 {[%emt 0:04:27]} 15. dxe5 {[%emt 0:17:35]} e6 {[%emt 0:02:25]} 16. Bg5 {[%emt 0:01:32]} Qb6 {[%emt 0:14:13]} 17. Bf6 {[%emt 0:00:08]} Bb5 {[%emt 0:00:42]} 18. Qf4 {[%emt 0:06:50]} Rac8 {[%emt 0:03:18]} 19. Bxg7 {[%emt 0:05:40]} 1/2-1/2

[Event "58th Akiba Rubinstein B 2022"]
[Site "Polanica-Zdroj"]
[Date "2022.08.18"]
[Round "6.8"]
[White "Bednarczyk, Mateusz"]
[Black "Lukasik, Zuzanna"]
[Result "0-1"]
[ECO "B57"]
[WhiteElo "1925"]
[BlackElo "1700"]
[Annotator "NA RC"]
[PlyCount "200"]
[EventDate "2022.08.13"]
[EventCountry "POL"]
[SourceTitle "playchess.com"]
[Source "ChessBase"]
[SourceQuality "1"]
[TimeControl "40/5400+30:1800+30"]

1. e4 {[%emt 0:00:04]} c5 {[%emt 0:00:42]} 2. Nf3 {[%emt 0:00:06]} Nc6 {[%emt 0:00:25]} 3. d4 {[%emt 0:00:47]} cxd4 {[%emt 0:00:33]} 4. Nxd4 {[%emt 0:00:03]} Nf6 {[%emt 0:00:23]} 5. Nc3 {[%emt 0:00:05]} d6 {[%emt 0:00:39]} 6. Bc4 {[%emt 0:00:16]} Qb6 {[%emt 0:00:40]} 7. Nde2 {[%emt 0:07:02]} a6 {[%emt 0:04:00]} 8. O-O {[%emt 0:01:50]} e6 {[%emt 0:02:47]} 9. Be3 {[%emt 0:02:48]} Qc7 {[%emt 0:02:22]} 10. a4 {[%emt 0:01:54]} Bd7 {[%emt 0:02:04]} 11. Bb3 {[%emt 0:05:40]} Be7 {[%emt 0:04:06]} 12. Qd2 {[%emt 0:01:09]} O-O {[%emt 0:00:57]} 13. Rad1 {[%emt 0:00:06]} Rfd8 {[%emt 0:06:09]} 14. Bf4 {[%emt 0:02:17]} Ne5 {[%emt 0:02:34]} 15. Bg5 {[%emt 0:11:01]} Bc6 {[%emt 0:22:03]} 16. Ng3 {[%emt 0:07:57]} Ned7 {[%emt 0:05:44]} 17. f4 {[%emt 0:03:05]} Nc5 {[%emt 0:05:08]} 18. Bxf6 {[%emt 0:02:33]} Bxf6 {[%emt 0:01:03]} 19. Kh1 {[%emt 0:02:10]} Rac8 {[%emt 0:03:53]} 20. f5 {[%emt 0:07:24]} Nxb3 {[%emt 0:15:04]} 21. cxb3 {[%emt 0:00:09]} Qe7 {[%emt 0:03:10]} 22. Nh5 {[%emt 0:03:31]} Bxc3 {[%emt 0:06:13]} 23. bxc3 {[%emt 0:00:40]} f6 {[%emt 0:04:54]} 24. Nf4 {[%emt 0:09:17]} e5 {[%emt 0:00:44]} 25. Ne6 {[%emt 0:00:10]} Rd7 {[%emt 0:00:53]} 26. Qe2 {[%emt 0:03:22]} d5 {[%emt 0:02:05]} 27. Rf3 {[%emt 0:02:01]} dxe4 {[%emt 0:03:14]} 28. Rg3 {[%emt 0:00:29]} g6 {[%emt 0:00:48]} 29. b4 {[%emt 0:23:41]} Bxa4 {[%emt 0:00:59]} 30. Ra1 {[%emt 0:00:44]} Bb5 {[%emt 0:00:29]} 31. Qg4 {[%emt 0:00:25]} g5 {[%emt 0:00:26]} 32. Qxe4 {[%emt 0:02:01]} Rc4 {[%emt 0:00:31]} 33. Qe3 {[%emt 0:01:00]} Rh4 {[%emt 0:00:31]} 34. Qa7 {[%emt 0:00:54]} Qe8 {[%emt 0:00:41]} 35. Qc5 {[%emt 0:00:01]} Rc4 {[%emt 0:00:21]} 36. Qe3 {[%emt 0:00:09]} h6 {[%emt 0:00:17]} 37. Rh3 {[%emt 0:00:38]} Rh7 {[%emt 0:00:08]} 38. Qd2 {[%emt 0:01:20]} Bd7 {[%emt 0:00:37]} 39. Qd5 {[%emt 0:00:24]} Bxe6 {[%emt 0:00:18]} 40. fxe6 {[%emt 0:00:00]} Rcc7 {[%emt 0:00:00]} 41. Rf1 {[%emt 0:02:26]} Kg7 {[%emt 0:19:11]} 42. Rhf3 {[%emt 0:00:17]} Qe7 {[%emt 0:01:23]} 43. Rxf6 {[%emt 0:15:43]} Qxf6 {[%emt 0:00:43]} 44. Rxf6 {[%emt 0:00:06]} Kxf6 {[%emt 0:00:06]} 45. c4 {[%emt 0:01:14]} Rhe7 {[%emt 0:02:14]} 46. g4 {[%emt 0:00:01]} Rc6 {[%emt 0:01:53]} 47. Qd8 {[%emt 0:01:34]} Kxe6 {[%emt 0:04:36]} 48. Qg8+ {[%emt 0:03:56]} Kd7 {[%emt 0:01:20]} 49. Qd5+ {[%emt 0:00:11]} Kc7 {[%emt 0:00:59]} 50. b5 {[%emt 0:02:19]} axb5 {[%emt 0:00:58]} 51. cxb5 {[%emt 0:00:06]} Rce6 {[%emt 0:01:02]} 52. Qc5+ {[%emt 0:00:36]} Kd8 {[%emt 0:00:28]} 53. b6 {[%emt 0:01:03]} Ke8 {[%emt 0:00:30]} 54. Kg2 {[%emt 0:03:16]} e4 {[%emt 0:00:20]} 55. Kf2 {[%emt 0:01:04]} e3+ {[%emt 0:00:20]} 56. Ke2 {[%emt 0:00:02]} Rf6 {[%emt 0:01:36]} 57. Qc8+ {[%emt 0:00:22]} Kf7 {[%emt 0:00:15]} 58. Qc4+ {[%emt 0:00:05]} Kg7 {[%emt 0:00:40]} 59. Qd4 {[%emt 0:00:11]} Kf7 {[%emt 0:00:36]} 60. Qd5+ {[%emt 0:00:19]} Rfe6 {[%emt 0:00:42]} 61. Qf5+ {[%emt 0:00:47]} Kg7 {[%emt 0:00:10]} 62. Qc5 {[%emt 0:00:49]} Re4 {[%emt 0:00:47]} 63. Qd6 {[%emt 0:01:02]} Rf7 {[%emt 0:00:40]} 64. Qd5 {[%emt 0:01:47]} Rxg4 {[%emt 0:01:22]} 65. Kxe3 {[%emt 0:01:54]} Rgf4 {[%emt 0:00:24]} 66. Qe5+ {[%emt 0:00:37]} Kg6 {[%emt 0:00:26]} 67. Qe6+ {[%emt 0:00:31]} Kh5 {[%emt 0:00:45]} 68. Qh3+ {[%emt 0:00:13]} Rh4 {[%emt 0:00:32]} 69. Qg2 {[%emt 0:00:38]} Re7+ {[%emt 0:00:37]} 70. Kd3 {[%emt 0:00:33]} Ree4 {[%emt 0:00:38]} 71. Qf3+ {[%emt 0:00:52]} Kg6 {[%emt 0:00:15]} 72. Qf8 {[%emt 0:00:21]} Rhf4 {[%emt 0:00:33]} 73. Qb8 {[%emt 0:00:26]} Rd4+ {[%emt 0:00:39]} 74. Kc3 {[%emt 0:00:40]} Rc4+ {[%emt 0:00:12]} 75. Kd3 {[%emt 0:00:21]} Rfd4+ {[%emt 0:00:25]} 76. Ke3 {[%emt 0:00:12]} Re4+ {[%emt 0:00:29]} 77. Kd3 {[%emt 0:00:20]} Rcd4+ {[%emt 0:00:57]} 78. Kc3 {[%emt 0:00:06]} Rd7 {[%emt 0:00:41]} 79. Qg8+ {[%emt 0:02:24]} Kh5 {[%emt 0:00:15]} 80. Qc8 {[%emt 0:00:36]} Ree7 {[%emt 0:00:35]} 81. Qc5 {[%emt 0:00:42]} Re6 {[%emt 0:00:28]} 82. Qf5 {[%emt 0:00:55]} Rc6+ {[%emt 0:00:24]} 83. Kb4 {[%emt 0:00:16]} Rxb6+ {[%emt 0:00:23]} 84. Kc5 {[%emt 0:00:20]} Rc6+ {[%emt 0:00:14]} 85. Kb5 {[%emt 0:00:07]} Rdd6 {[%emt 0:00:51]} 86. Qf7+ {[%emt 0:00:31]} Kh4 {[%emt 0:00:25]} 87. Qf2+ {[%emt 0:00:04]} Kg4 {[%emt 0:00:17]} 88. Qg3+ {[%emt 0:00:26]} Kf5 {[%emt 0:00:10]} 89. Qf3+ {[%emt 0:00:08]} Ke6 {[%emt 0:00:37]} 90. Qe4+ {[%emt 0:00:14]} Kd7 {[%emt 0:00:16]} 91. Qh7+ {[%emt 0:00:32]} Kc8 {[%emt 0:00:13]} 92. Qg8+ {[%emt 0:00:34]} Kc7 {[%emt 0:00:08]} 93. Qg7+ {[%emt 0:00:12]} Kb8 {[%emt 0:00:12]} 94. Qh8+ {[%emt 0:00:11]} Ka7 {[%emt 0:00:08]} 95. Qa1+ {[%emt 0:00:05]} Ra6 {[%emt 0:00:18]} 96. Qg1+ {[%emt 0:00:27]} Rab6+ {[%emt 0:00:29]} 97. Ka5 {[%emt 0:00:35]} Rd5+ {[%emt 0:00:35]} 98. Ka4 {[%emt 0:00:10]} Rdb5 {[%emt 0:00:11]} 99. Qf2 Rb2 100. Qe3 Ra2+ 0-1